bitfinex-derivatives/quotes_SOLF0:USTF0_20250131
["timestamp","ask_amount","ask_price","bid_price","bid_amount"]
[1738350690812,0.03049795,230.93,230.87,4.3325]
[1738350691214,0.03049795,230.93,230.88,23.78669717]
[1738350691417,0.03049795,230.93,230.88,19.45459717]
[1738350691810,0.03049795,230.93,230.86,4.36286448]
[1738350692010,0.03049795,230.93,230.86,0.03036448]
[1738350693110,4.3315,230.92,230.86,0.03036448]
[1738350693916,4.332,230.9,230.86,0.03036448]
[1738350694117,0.03049795,230.93,230.86,0.03036448]
[1738350694511,4.3325,230.87,230.86,0.03036448]
[1738350695116,0.03049795,230.93,230.86,0.03036448]
[1738350696220,4.3318,230.91,230.86,0.03036448]
[1738350696407,0.03049795,230.93,230.86,0.03036448]
[1738350696812,0.03049795,230.93,230.88,4.3322]
[1738350697018,0.03049795,230.93,230.86,0.03036448]
[1738350698517,0.03049795,230.93,230.86,4.36296448]
[1738350698714,0.03049795,230.93,230.88,19.45459717]
[1738350698914,23.39705874,231.17,230.92,19.45459717]
[1738350698915,19.45459717,231.12,230.92,19.45459717]
[1738350699116,1.4298,231.02,230.92,19.45459717]
[1738350699713,1.4298,231.02,230.95,4.3309]
[1738350699920,1.4298,231.02,230.92,19.45459717]
[1738350700113,0.0331113,231.01,230.96,0.02827935]
[1738350700320,4.3291,231.05,230.97,4.3306]
[1738350700620,0.03235442,231.01,230.96,19.48562319]
[1738350701213,0.03235442,231.01,230.96,0.03102602]
[1738350702018,4.3302,230.99,230.96,0.03102602]
[1738350702316,0.03235442,231.01,230.96,0.03102602]
[1738350702519,0.03235442,231.01,230.97,4.3306]
[1738350702819,0.03235442,231.01,230.96,19.48562319]
[1738350703220,0.03235442,231.01,230.96,23.81642319]
[1738350703521,0.03235442,231.01,230.96,19.48562319]
[1738350704522,0.03235442,231.01,230.96,0.03102602]
[1738350705418,4.3306,230.98,230.96,0.03102602]
[1738350705919,4.3314,230.93,230.85,4.3328]
[1738350706510,2.8176,230.97,230.84,19.45459717]
[1738350706709,2.8176,230.97,230.84,23.78759717]
[1738350706919,2.8176,230.97,230.8,19.45459717]
[1738350707121,4.3316,230.92,230.88,0.02824736]
[1738350708321,0.03026932,230.93,230.88,0.02824736]
[1738350708815,4.3321,230.89,230.88,0.02824736]
[1738350709319,4.3325,230.87,230.76,19.45459717]
[1738350709619,2.8176,230.97,230.72,19.69199717]
[1738350709819,19.45459717,230.92,230.72,19.69199717]
[1738350710022,19.45459717,230.92,230.76,4.3344]
[1738350710419,0.02896556,230.86,230.82,0.02775069]
[1738350710615,0.02896556,230.86,230.72,4.3352]
[1738350710616,4.3338,230.81,230.72,4.3352]
[1738350710822,4.3338,230.81,230.69,85.78]
[1738350711726,0.02935222,230.77,230.73,0.03026926]
[1738350712927,0.02935222,230.77,230.6,19.45459717]
[1738350713225,4.3351,230.73,230.6,19.45459717]
[1738350713416,19.45459717,230.8,230.65,4.3366]
[1738350713623,19.45459717,230.8,230.6,19.45459717]
[1738350713816,4.3345,230.77,230.6,19.45459717]
[1738350714217,0.02868407,230.72,230.68,0.02779351]
[1738350715125,1.443,230.85,230.68,19.48239068]
[1738350715320,1.443,230.85,230.74,19.45459717]
[1738350715919,19.45459717,230.97,230.78,19.45459717]
[1738350716121,4.332,230.9,230.8,4.3337]
[1738350716326,0.03181537,230.9,230.85,0.02760411]
[1738350716527,4.3332,230.83,230.74,19.45459717]
[1738350716727,0.03181537,230.9,230.74,19.45459717]
[1738350716923,1.3441,230.92,230.74,19.45459717]
[1738350717628,0.03260948,230.85,230.81,0.03168312]
[1738350718830,4.3331,230.84,230.81,0.03168312]
[1738350719531,0.03260948,230.85,230.81,0.03168312]
[1738350720124,0.03260948,230.85,230.82,19.45459717]
[1738350721030,22.55459717,231.05,230.82,19.45459717]
[1738350721228,1.4589,231.0,230.82,19.45459717]
[1738350721533,1.4589,231.0,230.9,19.45459717]
[1738350722427,0.02880922,230.97,230.93,0.0309334]
[1738350722726,0.02880922,230.97,230.94,19.45459717]
[1738350723026,4.3291,231.06,230.95,4.3309]
[1738350723333,1.3528,231.07,230.9,19.45459717]
[1738350723631,1.3528,231.07,230.96,4.3308]
[1738350723632,4.3291,231.06,230.96,4.3308]
[1738350723933,1.3528,231.07,230.97,19.45459717]
[1738350724233,0.02967167,231.03,230.99,0.03311467]
[1738350729737,4.3297,231.02,230.99,0.03311467]
[1738350729936,0.02967167,231.03,230.99,0.03311467]
[1738350730840,4.3297,231.02,230.99,0.03311467]
[1738350731139,0.02967167,231.03,230.99,0.03311467]
[1738350731937,0.02967167,231.03,230.86,19.45459717]
[1738350732237,19.45459717,231.06,230.86,19.45459717]
[1738350732439,4.331,230.96,230.88,4.3323]
[1738350732636,19.45459717,231.06,230.86,19.45459717]
[1738350732829,19.45459717,231.06,230.8,3.1]
[1738350732830,19.45459717,231.02,230.82,19.45459717]
[1738350733036,4.331,230.95,230.94,0.0300365]
[1738350733235,0.02837507,230.99,230.8,3.1]
[1738350733430,1.356,231.01,230.8,3.1]
[1738350733635,1.356,231.01,230.79,0.0593]
[1738350733937,1.356,231.01,230.75,88.86]
[1738350734129,19.45459717,230.98,230.75,88.86]
[1738350734330,4.3322,230.89,230.87,0.02740165]
[1738350734840,0.02991584,230.92,230.87,0.02740165]
[1738350735438,0.02991584,230.92,230.9,4.3318]
[1738350735737,0.02991584,230.92,230.89,19.45459717]
[1738350735935,1.356,231.01,230.89,19.45459717]
[1738350736132,1.3911,231.05,230.93,19.45459717]
[1738350736439,1.3911,231.05,230.97,19.45459717]
[1738350737230,0.02987731,231.03,230.99,0.03103905]
[1738350740546,0.02987731,231.03,230.99,4.36123905]
[1738350740744,0.02987731,231.03,230.99,0.03103905]
[1738350745144,4.33,231.01,230.99,0.03103905]
[1738350745350,0.02987731,231.03,230.99,0.03103905]
[1738350745852,4.33,231.0,230.99,0.03103905]
[1738350746352,0.02987731,231.03,230.99,0.03103905]
[1738350747154,0.02987731,231.03,231.0,4.33]
[1738350747456,0.02987731,231.03,230.99,0.03103905]
[1738350748250,0.02987731,231.03,231.01,4.3297]
[1738350748753,0.02987731,231.03,231.0,4.33]
[1738350748952,0.02987731,231.03,230.99,0.03103905]
[1738350749346,0.02987731,231.03,231.01,23.78439717]
[1738350749550,0.02987731,231.03,230.99,0.03103905]
[1738350750861,0.02987731,231.03,230.99,4.36113905]
[1738350751254,0.02987731,231.03,231.01,19.45459717]
[1738350752056,0.02987731,231.03,231.02,4.3297]
[1738350752459,0.02987731,231.03,230.99,0.03103905]
[1738350752656,0.02987731,231.03,230.99,4.36113905]
[1738350752857,0.02987731,231.03,230.99,0.03103905]
[1738350757558,0.02987731,231.03,230.99,4.36123905]
[1738350757959,0.02987731,231.03,230.99,0.03103905]
[1738350758560,0.02987731,231.03,231.02,4.3297]
[1738350758760,0.02987731,231.03,230.99,0.03103905]
[1738350759756,0.02987731,231.03,231.01,19.45459717]
[1738350760170,1.392,231.09,231.02,4.3297]
[1738350760756,1.3904,231.12,231.01,19.45459717]
[1738350760960,1.3904,231.12,231.04,4.3291]
[1738350761268,1.4088,231.21,230.89,0.0911]
[1738350761269,1.4088,231.21,231.09,19.45459717]
[1738350761663,4.3265,231.2,231.09,23.78279717]
[1738350761863,1.4088,231.21,231.05,19.45459717]
[1738350762364,4.3268,231.18,231.05,19.45459717]
[1738350762555,0.03251603,231.15,231.11,0.02987199]
[1738350762962,1.4088,231.21,231.13,19.45459717]
[1738350763358,1.432,231.26,231.18,4.3266]
[1738350763562,1.432,231.26,231.17,19.45459717]
[1738350763766,1.432,231.26,231.17,23.78139717]
[1738350764165,0.02841029,231.24,231.19,0.03329445]
[1738350765868,4.3263,231.2,231.19,0.03329445]
[1738350766572,1.3786,231.23,231.09,19.45459717]
[1738350766768,4.3267,231.18,231.09,23.78279717]
[1738350766970,1.4592,231.22,231.09,19.45459717]
[1738350767271,1.4592,231.22,231.09,23.78289717]
[1738350767863,4.3269,231.17,231.13,0.03170233]
[1738350768070,0.02901545,231.18,231.13,0.03170233]
[1738350768674,4.35571545,231.18,231.13,0.03170233]
[1738350769873,0.02901545,231.18,231.13,0.03170233]
[1738350770272,4.3269,231.17,231.13,0.03170233]
[1738350770874,0.02901545,231.18,231.13,0.03170233]
[1738350771076,4.3271,231.16,231.13,0.03170233]
[1738350771474,0.02901545,231.18,231.13,0.03170233]
[1738350771674,4.3268,231.17,231.13,0.03170233]
[1738350771974,0.02901545,231.18,231.13,0.03170233]
[1738350772378,4.35581545,231.18,231.13,0.03170233]
[1738350772571,0.02901545,231.18,231.13,0.03170233]
[1738350772976,4.35571545,231.18,231.13,0.03170233]
[1738350773178,0.02901545,231.18,231.13,19.4862995]
[1738350774579,0.02901545,231.18,231.13,23.8138995]
[1738350774877,0.02901545,231.18,231.13,0.03170233]
[1738350775073,4.3274,231.14,231.13,0.03170233]
[1738350775279,0.02901545,231.18,231.01,28.87518581]
[1738350775576,4.328,231.11,231.03,4.3295]
[1738350776474,0.03031319,231.09,231.05,0.03036811]
[1738350776776,0.03031319,231.09,231.05,19.48496528]
[1738350776981,1.408,231.19,231.05,19.48496528]
[1738350777179,1.4592,231.22,231.13,19.45459717]
[1738350777473,1.4592,231.22,231.14,4.3274]
[1738350778073,4.3254,231.25,231.16,4.327]
[1738350778273,0.03002927,231.2,231.16,0.03256092]
[1738350779081,0.03002927,231.2,231.17,19.45459717]
[1738350779282,0.03002927,231.2,231.18,4.3266]
[1738350779677,0.03002927,231.2,231.17,19.45459717]
[1738350780177,1.4656,231.35,231.17,19.45459717]
[1738350780478,4.3244,231.31,231.21,23.78069717]
[1738350780678,2.8348,231.34,231.21,19.45459717]
[1738350781085,4.3244,231.31,231.21,19.45459717]
[1738350781382,0.03070077,231.3,231.25,0.03267347]
[1738350781581,2.8348,231.34,231.17,19.45459717]
[1738350781881,0.02975281,231.3,231.25,0.03068611]
[1738350782975,4.3254,231.25,231.18,4.3266]
[1738350783170,4.3254,231.25,231.17,19.45459717]
[1738350783171,2.8348,231.34,231.17,19.45459717]
[1738350783372,19.45459717,231.32,231.15,4.327]
[1738350783572,4.3262,231.21,231.13,19.45459717]
[1738350783973,2.8348,231.34,231.17,19.45459717]
[1738350784178,0.03034435,231.19,231.17,19.45459717]
[1738350784481,2.8348,231.34,231.17,19.45459717]
[1738350784672,0.03117489,231.2,231.16,0.02855165]
[1738350784876,2.8348,231.34,231.19,19.45459717]
[1738350785177,1.44,231.47,231.28,19.45459717]
[1738350785378,1.3347,231.43,231.31,4.3242]
[1738350785573,1.3347,231.43,231.28,19.45459717]
[1738350785873,1.3347,231.43,231.24,19.45459717]
[1738350786081,0.02821196,231.38,231.33,0.03259862]
[1738350786677,4.35131196,231.38,231.33,0.03259862]
[1738350786980,0.02821196,231.38,231.33,0.03259862]
[1738350787481,4.3233,231.36,231.33,0.03259862]
[1738350787682,0.02821196,231.38,231.33,0.03259862]
[1738350789385,4.3237,231.34,231.33,0.03259862]
[1738350789681,0.02821196,231.38,231.24,19.45459717]
[1738350789880,0.02821196,231.38,231.2,3.1]
[1738350789881,4.3245,231.3,231.2,22.55459717]
[1738350790384,4.3249,231.28,231.2,23.78089717]
[1738350790584,19.45459717,231.4,231.2,19.45459717]
[1738350790779,0.03146199,231.26,231.22,0.02775826]
[1738350790981,19.45459717,231.4,231.2,23.78069717]
[1738350791176,19.45459717,231.4,231.2,19.45459717]
[1738350791383,0.02840535,231.32,231.28,0.03328997]
[1738350791583,4.3246,231.29,231.28,0.03328997]
[1738350791784,4.3246,231.29,231.2,19.45459717]
[1738350791785,1.4578,231.31,231.2,19.45459717]
[1738350791977,4.3254,231.25,231.2,19.45459717]
[1738350792180,2.8994,231.31,231.16,19.45459717]
[1738350792676,4.3261,231.21,231.12,23.78219717]
[1738350792876,0.02950874,231.26,231.21,0.02805959]
[1738350793081,2.8994,231.31,231.21,0.02805959]
[1738350793281,0.02904487,231.26,231.21,0.02805959]
[1738350794786,1.3478,231.39,231.24,19.45459717]
[1738350795085,1.3478,231.39,231.29,19.45459717]
[1738350795285,4.3231,231.37,231.29,19.45459717]
[1738350795478,1.3478,231.39,231.29,19.45459717]
[1738350795779,0.02977629,231.36,231.32,0.03225927]
[1738350795984,4.3237,231.34,231.32,0.03225927]
[1738350796380,4.3239,231.33,231.32,0.03225927]
[1738350798585,0.02977629,231.36,231.21,19.45459717]
[1738350798886,19.45459717,231.36,231.17,19.45459717]
[1738350799678,0.02975504,231.29,231.24,0.03136652]
[1738350799882,0.02975504,231.29,231.13,19.45459717]
[1738350800184,19.45459717,231.32,231.13,19.45459717]
[1738350800384,19.45459717,231.36,231.18,4.3267]
[1738350800582,19.45459717,231.36,231.17,19.45459717]
[1738350801088,0.02915396,231.29,231.17,19.45459717]
[1738350801281,0.02915396,231.29,231.24,0.03109538]
[1738350801482,0.02915396,231.29,231.15,4.3272]
[1738350801778,19.45459717,231.36,231.15,4.3272]
[1738350801982,4.3245,231.3,231.15,4.3272]
[1738350802279,19.45459717,231.36,231.17,4.3268]
[1738350802684,19.48219313,231.29,231.24,0.02408159]
[1738350802885,19.48219313,231.29,231.15,4.3272]
[1738350803186,19.45459717,231.29,231.15,4.3272]
[1738350803983,0.03213106,231.24,231.15,4.3272]
[1738350804186,4.3263,231.2,231.15,4.3272]
[1738350804387,0.03213106,231.24,231.13,19.45459717]
[1738350804587,19.45459717,231.33,231.13,19.45459717]
[1738350804891,0.03239009,231.21,231.14,4.3274]
[1738350805083,19.45459717,231.33,231.13,19.45459717]
[1738350805588,0.03199115,231.25,231.15,4.3271]
[1738350805789,0.03199115,231.25,231.13,19.45459717]
[1738350806087,0.03199115,231.25,231.19,4.3265]
[1738350806288,25.35169717,231.37,231.19,4.3265]
[1738350806488,0.0305566,231.24,231.19,4.3265]
[1738350806689,22.27169717,231.37,231.19,4.3265]
[1738350806884,0.02762545,231.24,231.17,23.78129717]
[1738350807086,25.35169717,231.37,231.17,19.45459717]
[1738350807282,0.03320788,231.23,231.17,19.45459717]
[1738350807487,4.3244,231.31,231.17,23.78139717]
[1738350807683,0.03027328,231.22,231.17,19.45459717]
[1738350807885,8.6467,231.36,231.21,19.45459717]
[1738350808190,1.3473,231.35,231.12,19.45459717]
[1738350808391,0.02891296,231.31,231.12,19.45459717]
[1738350808587,4.3242,231.32,231.24,4.3255]
[1738350808890,2.8171,231.37,231.27,19.45459717]
[1738350809082,2.8155,231.44,231.31,19.45459717]
[1738350809286,0.02811647,231.34,231.31,19.45459717]
[1738350809487,4.3231,231.37,231.31,19.45459717]
[1738350809686,0.03167774,231.35,231.27,19.45459717]
[1738350809991,0.03167774,231.35,231.33,19.45459717]
[1738350810589,2.8155,231.44,231.33,19.45459717]
[1738350810890,4.3221,231.43,231.33,23.77839717]
[1738350811284,2.8155,231.44,231.33,19.45459717]
[1738350811486,4.3218,231.45,231.37,19.45459717]
[1738350811682,37.00136477,231.57,231.39,0.03167774]
[1738350811683,0.0312458,231.43,231.39,0.03167774]
[1738350811881,1.3906,231.51,231.41,19.45459717]
[1738350812088,0.03029508,231.43,231.41,19.45459717]
[1738350812392,2.8184,231.55,231.41,19.45459717]
[1738350812584,2.8184,231.55,231.46,19.45459717]
[1738350812893,2.8184,231.55,231.37,0.3089]
[1738350813394,0.03110016,231.48,231.44,0.02931792]
[1738350814691,4.35220016,231.48,231.44,0.02931792]
[1738350814891,0.03110016,231.48,231.44,0.02931792]
[1738350816186,0.03110016,231.48,231.45,19.45459717]
[1738350817199,1.3661,231.61,231.45,19.45459717]
[1738350817386,4.3194,231.57,231.47,4.3212]
[1738350817591,1.3661,231.61,231.45,19.45459717]
[1738350818295,0.02928963,231.55,231.51,0.03229221]
[1738350818992,4.3199,231.54,231.51,0.03229221]
[1738350819293,0.02928963,231.55,231.51,0.03229221]
[1738350820892,0.02928963,231.55,231.41,19.45459717]
[1738350821100,19.45459717,231.54,231.37,19.45459717]
[1738350821298,19.45459717,231.54,231.33,62.46029006]
[1738350821299,1.4368,231.53,231.33,81.91488723]
[1738350821488,4.3216,231.45,231.37,4.3231]
[1738350821690,1.4368,231.53,231.37,4.3231]
[1738350821898,1.4368,231.53,231.33,81.91488723]
[1738350822199,0.02729577,231.47,231.43,0.0291365]
[1738350822398,0.02729577,231.47,231.26,119.12886011]
[1738350822399,0.02729577,231.47,231.29,19.45459717]
[1738350822598,4.3224,231.41,231.33,4.3238]
[1738350822800,19.45459717,231.5,231.29,19.45459717]
[1738350823299,4.3222,231.42,231.29,19.45459717]
[1738350823497,0.02867625,231.42,231.37,0.03070308]
[1738350823896,1.4368,231.53,231.37,0.03070308]
[1738350824096,0.0310116,231.42,231.35,4.3233]
[1738350824298,4.3217,231.45,231.43,0.03114382]
[1738350824493,1.4368,231.53,231.37,4.323]
[1738350824796,0.03179423,231.46,231.42,0.02789255]
[1738350825203,4.35329423,231.46,231.42,0.02789255]
[1738350825393,0.03179423,231.46,231.42,0.02789255]
[1738350825600,4.3217,231.45,231.42,0.02789255]
[1738350825793,0.03179423,231.46,231.42,0.02789255]
[1738350826701,4.322,231.43,231.42,0.02789255]
[1738350827392,4.3232,231.37,231.29,19.45459717]
[1738350827794,1.4653,231.45,231.29,19.45459717]
[1738350828001,1.4653,231.45,231.34,19.45459717]
[1738350828601,0.03027499,231.42,231.35,4.3235]
[1738350828996,0.03027499,231.42,231.34,19.45459717]
[1738350829192,0.03027499,231.42,231.38,19.45459717]
[1738350829402,1.3869,231.52,231.38,19.45459717]
[1738350829602,4.3207,231.5,231.42,19.45459717]
[1738350829803,3.08,231.6,231.42,19.45459717]
[1738350829999,3.08,231.6,231.46,19.45459717]
[1738350830000,1.3733,231.59,231.46,19.45459717]
[1738350830202,1.3733,231.59,231.46,23.77599717]
[1738350830404,1.3733,231.59,231.46,19.45459717]
[1738350830604,1.3733,231.59,231.5,0.02987288]
[1738350830605,0.03104759,231.55,231.5,0.02987288]
[1738350831498,4.35074759,231.55,231.5,0.02987288]
[1738350831701,0.03104759,231.55,231.5,0.02987288]
[1738350832403,4.3203,231.52,231.5,0.02987288]
[1738350832602,0.03104759,231.55,231.5,0.02987288]
[1738350833403,0.03104759,231.55,231.37,0.3313]
[1738350833803,20.83779717,231.58,231.42,19.45459717]
[1738350834505,0.03054863,231.52,231.42,19.45459717]
[1738350834802,4.3208,231.5,231.42,19.45459717]
[1738350835002,0.03054863,231.52,231.42,19.45459717]
[1738350836810,0.03054863,231.52,231.42,23.77669717]
[1738350836811,4.3207,231.5,231.42,23.77669717]
[1738350838114,4.3207,231.5,231.42,19.45459717]
[1738350838314,0.03054863,231.52,231.42,19.45459717]
[1738350838510,4.3209,231.49,231.42,19.45459717]
[1738350839510,0.03054863,231.52,231.37,0.1474]
[1738350839718,20.83779717,231.58,231.36,19.45459717]
[1738350839915,19.45459717,231.54,231.36,19.45459717]
[1738350840120,0.03243857,231.46,231.36,19.45459717]
[1738350840309,4.322,231.43,231.36,19.45459717]
[1738350840511,0.03243857,231.46,231.36,19.45459717]
[1738350840916,0.03243857,231.46,231.29,0.3319]
[1738350840917,4.3224,231.41,231.33,4.3238]
[1738350841218,3.08,231.55,231.32,19.45459717]
[1738350841219,19.45459717,231.51,231.32,19.45459717]
[1738350841514,4.35597299,231.39,231.32,19.45459717]
[1738350841711,4.3229,231.39,231.32,19.45459717]
[1738350841910,1.4515,231.5,231.32,19.45459717]
[1738350842113,0.0323979,231.38,231.32,19.45459717]
[1738350842312,1.4515,231.5,231.32,19.45459717]
[1738350842514,0.03067587,231.43,231.28,19.83789717]
[1738350842718,2.8134,231.46,231.28,19.45459717]
[1738350842912,0.03316419,231.38,231.28,19.45459717]
[1738350843318,0.03316419,231.38,231.24,54.25908312]
[1738350843319,0.03316419,231.38,231.25,85.6]
[1738350843921,0.03316419,231.38,231.2,19.45459717]
[1738350844221,19.45459717,231.39,231.2,19.45459717]
[1738350844423,4.3248,231.28,231.2,19.45459717]
[1738350844924,4.3254,231.25,231.16,19.45459717]
[1738350845420,0.03309618,231.26,231.2,19.45459717]
[1738350845618,1.4458,231.34,231.24,19.45459717]
[1738350846521,1.3947,231.37,231.24,19.45459717]
[1738350846818,0.0306228,231.31,231.28,19.45459717]
[1738350847120,4.3227,231.4,231.28,19.45459717]
[1738350847319,1.4458,231.42,231.28,19.45459717]
[1738350847719,4.3231,231.37,231.29,4.3245]
[1738350848022,1.4458,231.42,231.28,19.45459717]
[1738350848222,5.768,231.42,231.33,4.3238]
[1738350848417,0.03141877,231.37,231.33,0.02767456]
[1738350848724,0.03141877,231.37,231.36,19.45459717]
[1738350849320,2.731,231.46,231.37,4.323]
[1738350849321,5.7163,231.46,231.37,4.323]
[1738350849718,1.3951,231.5,231.4,19.45459717]
[1738350849916,1.4468,231.53,231.44,19.45459717]
[1738350850725,0.02769648,231.51,231.46,0.03212961]
[1738350852024,1.3917,231.61,231.48,19.45459717]
[1738350852325,1.3917,231.61,231.52,19.45459717]
[1738350852825,4.3185,231.62,231.52,19.45459717]
[1738350853023,26.47569013,231.73,231.37,0.8047]
[1738350853024,1.3917,231.71,231.56,19.45459717]
[1738350853328,0.03168111,231.59,231.56,19.45459717]
[1738350853520,2.7291,231.71,231.56,19.45459717]
[1738350853723,0.02786696,231.6,231.56,19.45459717]
[1738350854228,0.03206069,231.6,231.56,19.48724742]
[1738350856228,0.03206069,231.6,231.58,4.3192]
[1738350857020,2.7291,231.71,231.56,19.48724742]
[1738350857021,4.3171,231.7,231.56,19.48724742]
[1738350857224,4.3171,231.7,231.6,19.45459717]
[1738350857724,2.7291,231.71,231.6,19.45459717]
[1738350857725,4.3173,231.68,231.6,19.45459717]
[1738350857929,2.7291,231.71,231.6,19.45459717]
[1738350858429,0.02934011,231.66,231.62,0.02935332]
[1738350858929,4.34704011,231.66,231.62,0.02935332]
[1738350859723,0.02934011,231.66,231.62,0.02935332]
[1738350860130,4.3179,231.65,231.62,0.02935332]
[1738350860430,0.02934011,231.66,231.62,0.02935332]
[1738350860822,4.34704011,231.66,231.62,0.02935332]
[1738350861020,0.02934011,231.66,231.62,0.02935332]
[1738350861432,4.34724011,231.66,231.62,0.02935332]
[1738350861829,0.02934011,231.66,231.62,0.02935332]
[1738350864032,4.3189,231.6,231.52,19.45459717]
[1738350864532,4.319,231.59,231.52,19.45459717]
[1738350864732,19.45459717,231.68,231.52,19.45459717]
[1738350865235,0.0323794,231.62,231.58,0.03097048]
[1738350865632,0.0323794,231.62,231.48,19.45459717]
[1738350865936,19.45459717,231.64,231.48,23.77549717]
[1738350866332,19.45459717,231.64,231.48,19.45459717]
[1738350866736,19.45459717,231.64,231.38,0.8276]
[1738350866737,19.45459717,231.64,231.44,19.45459717]
[1738350866934,0.02949586,231.58,231.54,0.03149473]
[1738350867330,4.3197,231.55,231.54,0.03149473]
[1738350867736,0.02949586,231.58,231.44,19.45459717]
[1738350867934,4.3202,231.53,231.44,19.45459717]
[1738350868137,19.45459717,231.64,231.44,19.45459717]
[1738350868437,19.45459717,231.6,231.44,19.45459717]
[1738350868633,4.3207,231.51,231.44,19.45459717]
[1738350868840,19.45459717,231.6,231.44,19.45459717]
[1738350869139,0.02966999,231.5,231.44,19.45459717]
[1738350869335,0.02966999,231.5,231.4,19.45459717]
[1738350869733,0.02966999,231.5,231.45,0.03264009]
[1738350870341,4.3212,231.48,231.45,0.03264009]
[1738350870536,0.02966999,231.5,231.45,0.03264009]
[1738350871038,4.3214,231.46,231.45,0.03264009]
[1738350871242,0.02966999,231.5,231.45,0.03264009]
[1738350871436,4.3214,231.46,231.45,0.03264009]
[1738350872937,0.02966999,231.5,231.45,0.03264009]
[1738350873539,4.3214,231.46,231.45,0.03264009]
[1738350874741,0.02966999,231.5,231.36,19.45459717]
[1738350874938,1.4329,231.55,231.36,19.45459717]
[1738350875240,4.3219,231.44,231.36,19.45459717]
[1738350875943,0.03024536,231.42,231.38,0.02728655]
[1738350879246,4.3225,231.41,231.38,0.02728655]
[1738350879446,0.03024536,231.42,231.38,0.02728655]
[1738350879640,4.35254536,231.42,231.38,0.02728655]
[1738350879842,0.03024536,231.42,231.38,0.02728655]
[1738350880946,4.3227,231.39,231.38,0.02728655]
[1738350882148,4.3239,231.34,231.28,19.45459717]
[1738350882343,1.461,231.41,231.24,19.45459717]
[1738350882543,19.45459717,231.4,231.24,19.45459717]
[1738350882743,19.45459717,231.4,231.16,0.5008]
[1738350882744,4.3245,231.3,231.22,4.3259]
[1738350882943,19.45459717,231.4,231.2,19.45459717]
[1738350883347,0.03154606,231.32,231.2,19.45459717]
[1738350883747,4.3244,231.3,231.22,4.3259]
[1738350884251,0.03154606,231.32,231.2,19.45459717]
[1738350884647,19.45459717,231.4,231.2,19.45459717]
[1738350884847,0.03288886,231.28,231.2,19.45459717]
[1738350885052,0.03288886,231.28,231.23,4.3256]
[1738350886150,0.03288886,231.28,231.2,19.45459717]
[1738350886446,0.03288886,231.28,231.24,23.78009717]
[1738350886653,0.03288886,231.28,231.24,19.45459717]
[1738350886845,1.461,231.41,231.24,38.90919434]
[1738350887046,1.461,231.41,231.31,19.45459717]
[1738350887646,5.7835,231.41,231.32,4.324]
[1738350888050,0.02736911,231.39,231.34,0.02773339]
[1738350888451,0.02736911,231.39,231.35,19.45459717]
[1738350890444,0.02736911,231.39,231.34,0.02773339]
[1738350893760,0.02736911,231.39,231.34,4.35123339]
[1738350894053,0.02736911,231.39,231.34,0.02773339]
[1738350894252,0.02736911,231.39,231.37,4.323]
[1738350894960,0.02736911,231.39,231.38,4.3229]
[1738350895158,1.4668,231.48,231.35,19.45459717]
[1738350895353,1.4668,231.48,231.39,19.45459717]
[1738350895657,1.4668,231.48,231.35,19.45459717]
[1738350896054,1.4668,231.48,231.37,4.3231]
[1738350896454,0.0301292,231.44,231.4,0.03152582]
[1738350896658,4.3519292,231.44,231.4,0.03152582]
[1738350896964,0.0301292,231.44,231.4,0.03152582]
[1738350897257,4.3221,231.43,231.4,0.03152582]
[1738350897658,0.0301292,231.44,231.4,0.03152582]
[1738350898762,0.0301292,231.44,231.4,4.35392582]
[1738350899963,0.0301292,231.44,231.4,0.03152582]
[1738350900260,4.3223,231.42,231.4,0.03152582]
[1738350900453,0.0301292,231.44,231.4,0.03152582]
[1738350900658,0.0301292,231.44,231.27,19.98199717]
[1738350900858,4.3231,231.37,231.29,4.3246]
[1738350901057,2.835,231.45,231.31,19.45459717]
[1738350901357,2.835,231.45,231.35,19.45459717]
[1738350901564,3.08,231.58,231.35,19.45459717]
[1738350901859,4.3212,231.48,231.44,0.02743113]
[1738350902058,0.03186217,231.49,231.39,23.77729717]
[1738350902258,2.835,231.57,231.44,0.03225827]
[1738350902562,0.0274698,231.46,231.44,0.03225827]
[1738350902756,4.3216,231.45,231.44,0.03225827]
[1738350902964,0.03242467,231.47,231.44,0.03225827]
[1738350903264,2.835,231.57,231.44,0.03225827]
[1738350903559,23.39569013,231.66,231.53,19.45459717]
[1738350903758,24.78509013,231.66,231.53,19.45459717]
[1738350904063,0.02882887,231.62,231.57,0.0303258]
[1738350906063,4.34732887,231.62,231.57,0.0303258]
[1738350906454,4.3187,231.61,231.57,0.0303258]
[1738350906662,0.02882887,231.62,231.57,0.0303258]